[Event "Early-Titled-Tuesday-Blitz-August-29-2023"]
[Site "Chess.com"]
[Date "2023.08.29"]
[Round "3"]
[White "GAZZAN_3000"]
[Black "BillieKimbah"]
[Result "0-1"]
[WhiteElo "2670"]
[BlackElo "3033"]
[TimeControl "180+1"]
[EndTime "8:27:52 PDT"]
[Termination "BillieKimbah won by resignation"]

1. d4 {[%clk 0:03:00.9]} 1... Nf6 {[%clk 0:02:59.6]} 2. Nf3 {[%clk 0:03:00.3]}
2... d5 {[%clk 0:02:59]} 3. c4 {[%clk 0:03:00.3]} 3... e6 {[%clk 0:02:59.1]} 4.
g3 {[%clk 0:03:00.8]} 4... Be7 {[%clk 0:02:58.9]} 5. Bg2 {[%clk 0:03:01.2]} 5...
O-O {[%clk 0:02:59.1]} 6. O-O {[%clk 0:03:01.9]} 6... c6 {[%clk 0:02:59.7]} 7.
b3 {[%clk 0:02:57.2]} 7... b6 {[%clk 0:02:58.3]} 8. Bb2 {[%clk 0:02:57.7]} 8...
Nbd7 {[%clk 0:02:58.1]} 9. Nc3 {[%clk 0:02:53.9]} 9... Ba6 {[%clk 0:02:57.7]}
10. Nd2 {[%clk 0:02:53.4]} 10... b5 {[%clk 0:02:54.8]} 11. e4 {[%clk 0:02:44.6]}
11... bxc4 {[%clk 0:02:40.9]} 12. bxc4 {[%clk 0:02:41.7]} 12... Nb6 {[%clk
0:02:39.6]} 13. exd5 {[%clk 0:02:02.5]} 13... exd5 {[%clk 0:02:36.2]} 14. c5
{[%clk 0:01:50.7]} 14... Bxf1 {[%clk 0:02:34.3]} 15. Qxf1 {[%clk 0:01:50.4]}
15... Nbd7 {[%clk 0:02:32.4]} 16. Qd3 {[%clk 0:01:49.4]} 16... Rb8 {[%clk
0:02:29.6]} 17. Qc2 {[%clk 0:01:43.4]} 17... Re8 {[%clk 0:02:27.9]} 18. Nd1
{[%clk 0:01:39]} 18... Bf8 {[%clk 0:02:26.6]} 19. Ne3 {[%clk 0:01:38.9]} 19...
g6 {[%clk 0:02:26.6]} 20. Nb3 {[%clk 0:01:30.8]} 20... Ne4 {[%clk 0:02:24.7]}
21. Re1 {[%clk 0:01:08.8]} 21... Bg7 {[%clk 0:02:23.6]} 22. h4 {[%clk
0:01:04.6]} 22... h5 {[%clk 0:02:23.2]} 23. Bc1 {[%clk 0:00:51.6]} 23... a5
{[%clk 0:02:11.2]} 24. a4 {[%clk 0:00:48.3]} 24... Rb4 {[%clk 0:02:10.8]} 25.
Kh2 {[%clk 0:00:44.7]} 25... Rxa4 {[%clk 0:02:02.9]} 26. f3 {[%clk 0:00:43.5]}
26... Nef6 {[%clk 0:01:53.4]} 27. Bd2 {[%clk 0:00:43.3]} 27... Qc7 {[%clk
0:01:48.8]} 28. Nc1 {[%clk 0:00:37.2]} 28... Rxd4 {[%clk 0:01:44.7]} 29. f4
{[%clk 0:00:28.2]} 29... Ne4 {[%clk 0:01:40.5]} 30. Nb3 {[%clk 0:00:25.4]} 30...
Ra4 {[%clk 0:01:34.1]} 31. Bxe4 {[%clk 0:00:20.4]} 31... Raxe4 {[%clk
0:01:33.5]} 32. Bxa5 {[%clk 0:00:17.5]} 32... Qc8 {[%clk 0:01:32.6]} 33. Bd2
{[%clk 0:00:17.4]} 33... Nf6 {[%clk 0:01:32.5]} 34. Ng2 {[%clk 0:00:16.8]} 34...
Re2 {[%clk 0:01:24.8]} 35. Rxe2 {[%clk 0:00:16.2]} 35... Rxe2 {[%clk 0:01:25.7]}
36. Qd3 {[%clk 0:00:16.8]} 36... Ng4+ {[%clk 0:01:18.8]} 37. Kg1 {[%clk
0:00:16.3]} 37... Qe6 {[%clk 0:01:18.4]} 38. Nc1 {[%clk 0:00:15.8]} 38... Re4
{[%clk 0:01:14.8]} 39. Qa3 {[%clk 0:00:11]} 39... Bd4+ {[%clk 0:01:14.2]} 0-1

[Event "Early-Titled-Tuesday-Blitz-August-29-2023"]
[Site "Chess.com"]
[Date "2023.08.29"]
[Round "3"]
[White "Cayse"]
[Black "AttilaTurzo"]
[Result "1-0"]
[WhiteElo "2897"]
[BlackElo "2514"]
[TimeControl "180+1"]
[EndTime "8:27:55 PDT"]
[Termination "Cayse won on time"]

1. b3 {[%clk 0:03:00.9]} 1... Nf6 {[%clk 0:02:53.1]} 2. Bb2 {[%clk 0:03:01.8]}
2... g6 {[%clk 0:02:52.7]} 3. e4 {[%clk 0:03:01.3]} 3... d6 {[%clk 0:02:48.6]}
4. g3 {[%clk 0:03:00.5]} 4... Bg7 {[%clk 0:02:48.6]} 5. Bg2 {[%clk 0:03:00.9]}
5... O-O {[%clk 0:02:49.2]} 6. d3 {[%clk 0:03:01]} 6... c5 {[%clk 0:02:49.5]} 7.
Nd2 {[%clk 0:03:00.7]} 7... Nc6 {[%clk 0:02:49.2]} 8. f4 {[%clk 0:03:01.2]} 8...
Bg4 {[%clk 0:02:40.4]} 9. Ngf3 {[%clk 0:02:59.3]} 9... Nd4 {[%clk 0:02:36.5]}
10. h3 {[%clk 0:02:57.3]} 10... Nxf3+ {[%clk 0:02:31.2]} 11. Nxf3 {[%clk
0:02:58.2]} 11... Bxf3 {[%clk 0:02:30.8]} 12. Qxf3 {[%clk 0:02:57.7]} 12... Rb8
{[%clk 0:02:17.4]} 13. O-O {[%clk 0:02:56.6]} 13... Nd7 {[%clk 0:02:12.7]} 14.
c3 {[%clk 0:02:46.6]} 14... b5 {[%clk 0:02:07.4]} 15. d4 {[%clk 0:02:41.8]}
15... b4 {[%clk 0:02:03]} 16. d5 {[%clk 0:02:39.4]} 16... bxc3 {[%clk
0:01:56.4]} 17. Bxc3 {[%clk 0:02:40.3]} 17... Bxc3 {[%clk 0:01:51.8]} 18. Qxc3
{[%clk 0:02:41.2]} 18... Qb6 {[%clk 0:01:51.1]} 19. Kh2 {[%clk 0:02:40.9]} 19...
Qb4 {[%clk 0:01:50.7]} 20. Qe3 {[%clk 0:02:35.8]} 20... a5 {[%clk 0:01:46.4]}
21. Rac1 {[%clk 0:02:34.5]} 21... Nb6 {[%clk 0:01:38.8]} 22. f5 {[%clk
0:02:31.5]} 22... a4 {[%clk 0:01:37]} 23. e5 {[%clk 0:02:28.2]} 23... axb3
{[%clk 0:01:32.9]} 24. axb3 {[%clk 0:02:27.7]} 24... dxe5 {[%clk 0:01:01.1]} 25.
Qxe5 {[%clk 0:02:24.5]} 25... Rbe8 {[%clk 0:00:48.3]} 26. Qc7 {[%clk 0:02:12.4]}
26... Na8 {[%clk 0:00:38.2]} 27. Qxc5 {[%clk 0:02:10.8]} 27... Qxb3 {[%clk
0:00:38.7]} 28. Rb1 {[%clk 0:02:03.3]} 28... Qd3 {[%clk 0:00:10.6]} 29. Rb7
{[%clk 0:02:01.9]} 29... Qe2 {[%clk 0:00:06.7]} 30. Rf2 {[%clk 0:01:55]} 30...
Qe5 {[%clk 0:00:06.5]} 31. fxg6 {[%clk 0:01:48.3]} 31... hxg6 {[%clk 0:00:04.2]}
32. Qc4 {[%clk 0:01:41.8]} 32... Kg7 {[%clk 0:00:03.8]} 33. Ra2 {[%clk
0:01:38.1]} 33... Rc8 {[%clk 0:00:02.1]} 34. Qb4 {[%clk 0:01:36.2]} 34... Nc7
{[%clk 0:00:02.1]} 35. Ra5 {[%clk 0:01:23.3]} 35... Qd6 {[%clk 0:00:01.5]} 36.
Qe1 {[%clk 0:01:10.7]} 1-0

[Event "Early-Titled-Tuesday-Blitz-August-29-2023"]
[Site "Chess.com"]
[Date "2023.08.29"]
[Round "3"]
[White "MikeSailer"]
[Black "Cherneevo_23"]
[Result "0-1"]
[WhiteElo "2184"]
[BlackElo "2422"]
[TimeControl "180+1"]
[EndTime "8:27:55 PDT"]
[Termination "Cherneevo_23 won on time"]

1. d4 {[%clk 0:03:00.3]} 1... Nf6 {[%clk 0:02:59.2]} 2. Nc3 {[%clk 0:02:55.4]}
2... d5 {[%clk 0:02:57.9]} 3. Bf4 {[%clk 0:02:55.1]} 3... g6 {[%clk 0:02:56.3]}
4. Nf3 {[%clk 0:02:48.8]} 4... Bg7 {[%clk 0:02:55.2]} 5. Ne5 {[%clk 0:02:46.6]}
5... O-O {[%clk 0:02:53.2]} 6. e3 {[%clk 0:02:47.1]} 6... c5 {[%clk 0:02:50.7]}
7. Be2 {[%clk 0:02:42.5]} 7... Nc6 {[%clk 0:02:48.6]} 8. g4 {[%clk 0:02:36.6]}
8... Qa5 {[%clk 0:02:40.8]} 9. f3 {[%clk 0:02:14.1]} 9... Nd7 {[%clk 0:02:28.5]}
10. Nxd7 {[%clk 0:02:01.3]} 10... Bxd7 {[%clk 0:02:26.1]} 11. h4 {[%clk
0:02:00.9]} 11... e5 {[%clk 0:02:20.5]} 12. dxe5 {[%clk 0:01:55.7]} 12... Nxe5
{[%clk 0:02:20.1]} 13. Qd2 {[%clk 0:01:30]} 13... d4 {[%clk 0:02:02.4]} 14. exd4
{[%clk 0:01:19.2]} 14... cxd4 {[%clk 0:02:00.6]} 15. Ne4 {[%clk 0:01:19.2]}
15... Qxd2+ {[%clk 0:01:57.2]} 16. Nxd2 {[%clk 0:01:15.2]} 16... Bc6 {[%clk
0:01:56.5]} 17. O-O-O {[%clk 0:01:12.2]} 17... Rfe8 {[%clk 0:01:51.7]} 18. Rhf1
{[%clk 0:01:01]} 18... Nxg4 {[%clk 0:01:47.2]} 19. fxg4 {[%clk 0:00:51.2]} 19...
Rxe2 {[%clk 0:01:46.6]} 20. Nb3 {[%clk 0:00:45.8]} 20... Rc8 {[%clk 0:01:40.9]}
21. Nxd4 {[%clk 0:00:41.3]} 21... Bxd4 {[%clk 0:01:39.7]} 22. Rxd4 {[%clk
0:00:41.5]} 22... Be4 {[%clk 0:01:40.3]} 23. c3 {[%clk 0:00:37.9]} 23... f5
{[%clk 0:01:32.5]} 24. gxf5 {[%clk 0:00:35.8]} 24... Bxf5 {[%clk 0:01:32]} 25.
h5 {[%clk 0:00:32.5]} 25... Rc2+ {[%clk 0:01:30.9]} 26. Kd1 {[%clk 0:00:32.6]}
26... Rxb2 {[%clk 0:01:30.5]} 27. hxg6 {[%clk 0:00:33.1]} 27... hxg6 {[%clk
0:01:29.3]} 28. c4 {[%clk 0:00:17.7]} 28... Rxa2 {[%clk 0:01:26.2]} 29. Bd6
{[%clk 0:00:13]} 29... Re8 {[%clk 0:01:15.5]} 30. c5 {[%clk 0:00:02.9]} 30...
Ra1+ {[%clk 0:01:10]} 0-1

[Event "Early-Titled-Tuesday-Blitz-August-29-2023"]
[Site "Chess.com"]
[Date "2023.08.29"]
[Round "3"]
[White "rasmussvane"]
[Black "WildTricks"]
[Result "1-0"]
[WhiteElo "2970"]
[BlackElo "2648"]
[TimeControl "180+1"]
[EndTime "8:27:58 PDT"]
[Termination "rasmussvane won by resignation"]

1. Nf3 {[%clk 0:03:00.9]} 1... c5 {[%clk 0:02:52]} 2. c4 {[%clk 0:02:59.9]} 2...
Nc6 {[%clk 0:02:51.7]} 3. Nc3 {[%clk 0:02:58.8]} 3... Nf6 {[%clk 0:02:52]} 4. e3
{[%clk 0:02:56.4]} 4... e5 {[%clk 0:02:51]} 5. Be2 {[%clk 0:02:55.3]} 5... Be7
{[%clk 0:02:49.6]} 6. O-O {[%clk 0:02:53.3]} 6... O-O {[%clk 0:02:49.6]} 7. d4
{[%clk 0:02:47.4]} 7... cxd4 {[%clk 0:02:49.4]} 8. exd4 {[%clk 0:02:48.3]} 8...
exd4 {[%clk 0:02:49.9]} 9. Nxd4 {[%clk 0:02:48.1]} 9... d5 {[%clk 0:02:50.5]}
10. Nxc6 {[%clk 0:02:24.8]} 10... bxc6 {[%clk 0:02:49.8]} 11. cxd5 {[%clk
0:02:25.7]} 11... Nxd5 {[%clk 0:02:49.7]} 12. Bd2 {[%clk 0:02:25.4]} 12... Bf5
{[%clk 0:02:37.7]} 13. Bf3 {[%clk 0:02:23.4]} 13... Bf6 {[%clk 0:02:35.9]} 14.
Rc1 {[%clk 0:02:22.8]} 14... Rb8 {[%clk 0:02:34.2]} 15. b3 {[%clk 0:02:21.5]}
15... Qd6 {[%clk 0:02:06.2]} 16. Ne4 {[%clk 0:02:18.4]} 16... Bxe4 {[%clk
0:01:52]} 17. Bxe4 {[%clk 0:02:19.3]} 17... Rfd8 {[%clk 0:01:50.4]} 18. Qf3
{[%clk 0:02:15.5]} 18... g6 {[%clk 0:01:42.6]} 19. Rfd1 {[%clk 0:02:10.6]} 19...
Be5 {[%clk 0:01:36.9]} 20. g3 {[%clk 0:02:10.2]} 20... Qf6 {[%clk 0:01:33.2]}
21. Qxf6 {[%clk 0:02:07.2]} 21... Bxf6 {[%clk 0:01:30.2]} 22. Ba5 {[%clk
0:02:05.1]} 22... Re8 {[%clk 0:01:19.4]} 23. Rxc6 {[%clk 0:01:55.9]} 23... Rxe4
{[%clk 0:01:11.6]} 24. Rxd5 {[%clk 0:01:55.8]} 24... Be7 {[%clk 0:00:41.2]} 25.
Rd7 {[%clk 0:01:52.2]} 25... Re2 {[%clk 0:00:35]} 26. Bc3 {[%clk 0:01:40.6]}
26... Bd8 {[%clk 0:00:20.6]} 27. Rxa7 {[%clk 0:01:35.8]} 27... Rc2 {[%clk
0:00:15.4]} 28. Raa6 {[%clk 0:00:53.6]} 28... h5 {[%clk 0:00:09.4]} 29. Be5
{[%clk 0:00:52.8]} 29... Rb5 {[%clk 0:00:07.7]} 30. Rxc2 {[%clk 0:00:51.8]} 1-0

[Event "Early-Titled-Tuesday-Blitz-August-29-2023"]
[Site "Chess.com"]
[Date "2023.08.29"]
[Round "3"]
[White "CarlosjPineror"]
[Black "Ariadna_Atreides"]
[Result "1-0"]
[WhiteElo "2428"]
[BlackElo "2234"]
[TimeControl "180+1"]
[EndTime "8:28:01 PDT"]
[Termination "CarlosjPineror won on time"]

1. e4 {[%clk 0:03:00.9]} 1... c6 {[%clk 0:02:59.6]} 2. d3 {[%clk 0:02:57.3]}
2... d5 {[%clk 0:03:00.2]} 3. Nd2 {[%clk 0:02:57.7]} 3... Nf6 {[%clk 0:02:58.9]}
4. Ngf3 {[%clk 0:02:55.5]} 4... Bg4 {[%clk 0:02:52.6]} 5. h3 {[%clk 0:02:55.2]}
5... Bxf3 {[%clk 0:02:51.9]} 6. Qxf3 {[%clk 0:02:56.1]} 6... e6 {[%clk
0:02:48.9]} 7. g3 {[%clk 0:02:55.9]} 7... Nbd7 {[%clk 0:02:48]} 8. Bg2 {[%clk
0:02:53.9]} 8... Bc5 {[%clk 0:02:44.4]} 9. O-O {[%clk 0:02:53.4]} 9... O-O
{[%clk 0:02:41.1]} 10. Qe2 {[%clk 0:02:53.4]} 10... a5 {[%clk 0:02:37.9]} 11. a4
{[%clk 0:02:52.9]} 11... h6 {[%clk 0:02:22.3]} 12. c3 {[%clk 0:02:51.7]} 12...
dxe4 {[%clk 0:02:18.9]} 13. dxe4 {[%clk 0:02:50.9]} 13... Qe7 {[%clk 0:02:10.7]}
14. e5 {[%clk 0:02:48.6]} 14... Nd5 {[%clk 0:02:09.8]} 15. Ne4 {[%clk
0:02:45.7]} 15... Bb6 {[%clk 0:02:02.9]} 16. Nd6 {[%clk 0:02:46]} 16... Bc7
{[%clk 0:01:59.9]} 17. Nc4 {[%clk 0:02:30]} 17... b5 {[%clk 0:01:47.2]} 18. axb5
{[%clk 0:02:29.6]} 18... cxb5 {[%clk 0:01:47.7]} 19. Ne3 {[%clk 0:02:30.5]}
19... Nxe5 {[%clk 0:01:34.4]} 20. Nxd5 {[%clk 0:02:27.7]} 20... exd5 {[%clk
0:01:33.7]} 21. Qxb5 {[%clk 0:02:28]} 21... Rfd8 {[%clk 0:01:21.5]} 22. Rd1
{[%clk 0:02:11]} 22... Rab8 {[%clk 0:01:09]} 23. Qe2 {[%clk 0:02:09.9]} 23...
Qc5 {[%clk 0:01:04.6]} 24. Bf4 {[%clk 0:02:04.9]} 24... Nc4 {[%clk 0:00:59.3]}
25. Bxc7 {[%clk 0:01:58.9]} 25... Qxc7 {[%clk 0:00:58.6]} 26. Rxd5 {[%clk
0:01:53.8]} 26... Nxb2 {[%clk 0:00:46]} 27. Raxa5 {[%clk 0:01:31.4]} 27... Qxc3
{[%clk 0:00:40.9]} 28. Ra7 {[%clk 0:01:27.3]} 28... Nc4 {[%clk 0:00:09.6]} 29.
Qe7 {[%clk 0:01:08.8]} 29... Qc1+ {[%clk 0:00:06.3]} 30. Kh2 {[%clk 0:01:07.8]}
30... Rf8 {[%clk 0:00:05.8]} 31. Rf5 {[%clk 0:01:01.7]} 31... Nd2 {[%clk
0:00:01.2]} 32. Rxf7 {[%clk 0:01:00.5]} 1-0

[Event "Early-Titled-Tuesday-Blitz-August-29-2023"]
[Site "Chess.com"]
[Date "2023.08.29"]
[Round "3"]
[White "elchacal664"]
[Black "ritanovikova"]
[Result "1-0"]
[WhiteElo "2413"]
[BlackElo "2147"]
[TimeControl "180+1"]
[EndTime "8:28:01 PDT"]
[Termination "elchacal664 won by resignation"]

1. Nf3 {[%clk 0:02:43.4]} 1... Nf6 {[%clk 0:02:59.4]} 2. g3 {[%clk 0:02:44.3]}
2... g6 {[%clk 0:02:59]} 3. Bg2 {[%clk 0:02:45.2]} 3... Bg7 {[%clk 0:02:59.9]}
4. O-O {[%clk 0:02:46.1]} 4... O-O {[%clk 0:03:00.2]} 5. d3 {[%clk 0:02:40.4]}
5... c6 {[%clk 0:03:00.5]} 6. e4 {[%clk 0:02:39.4]} 6... d6 {[%clk 0:03:00.1]}
7. Qe2 {[%clk 0:02:40.3]} 7... e5 {[%clk 0:02:59.7]} 8. h3 {[%clk 0:02:41.2]}
8... Qc7 {[%clk 0:02:58.1]} 9. Nbd2 {[%clk 0:02:40.1]} 9... Re8 {[%clk
0:02:57.3]} 10. Rb1 {[%clk 0:02:37.4]} 10... d5 {[%clk 0:02:56.7]} 11. b4 {[%clk
0:02:36.8]} 11... dxe4 {[%clk 0:02:51.4]} 12. Nxe4 {[%clk 0:02:35.6]} 12... Nxe4
{[%clk 0:02:50.3]} 13. dxe4 {[%clk 0:02:35.6]} 13... Be6 {[%clk 0:02:43.6]} 14.
a4 {[%clk 0:02:35.5]} 14... h6 {[%clk 0:02:42.1]} 15. c4 {[%clk 0:02:33.6]}
15... Na6 {[%clk 0:02:29.6]} 16. c5 {[%clk 0:02:26.9]} 16... b5 {[%clk
0:02:24.2]} 17. axb5 {[%clk 0:02:24]} 17... cxb5 {[%clk 0:02:23.8]} 18. Qxb5
{[%clk 0:02:23.9]} 18... Qc8 {[%clk 0:02:05.7]} 19. Qa4 {[%clk 0:02:14.8]} 19...
Nc7 {[%clk 0:01:53.9]} 20. Bb2 {[%clk 0:02:06.4]} 20... Bxh3 {[%clk 0:01:51.7]}
21. Rfd1 {[%clk 0:01:58.9]} 21... Bxg2 {[%clk 0:01:49.3]} 22. Kxg2 {[%clk
0:01:58.5]} 22... Qg4 {[%clk 0:01:46.9]} 23. b5 {[%clk 0:01:54.5]} 23... Ne6
{[%clk 0:01:45.7]} 24. Nxe5 {[%clk 0:01:29.9]} 24... Nf4+ {[%clk 0:01:40.3]} 25.
Kg1 {[%clk 0:01:21.4]} 25... Bxe5 {[%clk 0:01:32]} 26. Bxe5 {[%clk 0:01:20.1]}
26... Rxe5 {[%clk 0:01:32.9]} 27. b6 {[%clk 0:01:13.8]} 27... Rg5 {[%clk
0:01:25.4]} 28. b7 {[%clk 0:01:07.2]} 28... Rb8 {[%clk 0:01:15.7]} 29. Qxa7
{[%clk 0:01:03.4]} 29... Nh3+ {[%clk 0:00:28.9]} 30. Kh2 {[%clk 0:00:56.5]}
30... Rxb7 {[%clk 0:00:28.3]} 31. Rd8+ {[%clk 0:00:52.9]} 31... Kg7 {[%clk
0:00:26.3]} 32. Qa1+ {[%clk 0:00:51.9]} 32... f6 {[%clk 0:00:23]} 33. Rxb7+
{[%clk 0:00:50.9]} 1-0

[Event "Early-Titled-Tuesday-Blitz-August-29-2023"]
[Site "Chess.com"]
[Date "2023.08.29"]
[Round "3"]
[White "Balla_Tamas"]
[Black "Kildepiotr"]
[Result "0-1"]
[WhiteElo "2441"]
[BlackElo "2651"]
[TimeControl "180+1"]
[EndTime "8:28:04 PDT"]
[Termination "Kildepiotr won by resignation"]

1. e4 {[%clk 0:02:59.7]} 1... g6 {[%clk 0:02:59.2]} 2. d4 {[%clk 0:02:58.8]}
2... Bg7 {[%clk 0:02:59.8]} 3. Nc3 {[%clk 0:02:48.1]} 3... c6 {[%clk 0:03:00.1]}
4. f4 {[%clk 0:02:35.8]} 4... d5 {[%clk 0:02:59.7]} 5. e5 {[%clk 0:02:32.4]}
5... Nh6 {[%clk 0:02:59]} 6. Be2 {[%clk 0:02:16.4]} 6... f6 {[%clk 0:02:51]} 7.
Be3 {[%clk 0:02:12.1]} 7... Nf5 {[%clk 0:02:46.3]} 8. Bf2 {[%clk 0:02:09.4]}
8... fxe5 {[%clk 0:02:46.2]} 9. fxe5 {[%clk 0:02:05.6]} 9... Bh6 {[%clk
0:02:42.9]} 10. Nf3 {[%clk 0:02:02.7]} 10... Ne3 {[%clk 0:02:39]} 11. Bxe3
{[%clk 0:02:00]} 11... Bxe3 {[%clk 0:02:39.9]} 12. Qd3 {[%clk 0:01:58.6]} 12...
Bh6 {[%clk 0:02:39.4]} 13. O-O {[%clk 0:01:58.4]} 13... Bf5 {[%clk 0:02:38.3]}
14. Qd1 {[%clk 0:01:56.8]} 14... e6 {[%clk 0:02:29.3]} 15. Bd3 {[%clk
0:01:51.1]} 15... O-O {[%clk 0:02:28.4]} 16. Bxf5 {[%clk 0:01:50]} 16... Rxf5
{[%clk 0:02:29.3]} 17. Ne2 {[%clk 0:01:48]} 17... Nd7 {[%clk 0:02:27]} 18. Ng3
{[%clk 0:01:47.7]} 18... Rf7 {[%clk 0:02:25.8]} 19. Qe2 {[%clk 0:01:39.9]} 19...
Qb6 {[%clk 0:02:24.1]} 20. c3 {[%clk 0:01:39]} 20... Raf8 {[%clk 0:02:23.4]} 21.
b3 {[%clk 0:01:30.3]} 21... c5 {[%clk 0:02:23.1]} 22. Rad1 {[%clk 0:01:26.9]}
22... cxd4 {[%clk 0:02:22.4]} 23. cxd4 {[%clk 0:01:27.8]} 23... Nb8 {[%clk
0:02:13.1]} 24. Qd3 {[%clk 0:01:27.3]} 24... Nc6 {[%clk 0:02:11.3]} 25. Rfe1
{[%clk 0:01:01.9]} 25... Rf4 {[%clk 0:02:06.7]} 26. Ne2 {[%clk 0:00:54]} 26...
Re4 {[%clk 0:02:04]} 27. Ng3 {[%clk 0:00:47.3]} 27... Rxe1+ {[%clk 0:01:59]} 28.
Rxe1 {[%clk 0:00:48.2]} 28... Rf4 {[%clk 0:01:58.3]} 29. Ne2 {[%clk 0:00:46.4]}
29... Re4 {[%clk 0:01:55.9]} 30. Rd1 {[%clk 0:00:46.7]} 30... Nxe5 {[%clk
0:01:48.3]} 31. Nxe5 {[%clk 0:00:38.9]} 31... Rxe5 {[%clk 0:01:49.2]} 32. Rf1
{[%clk 0:00:34.6]} 32... Rf5 {[%clk 0:01:29.6]} 33. Rxf5 {[%clk 0:00:31.5]}
33... exf5 {[%clk 0:01:30.5]} 34. Nc3 {[%clk 0:00:30.4]} 34... Bg7 {[%clk
0:01:29.1]} 35. Nxd5 {[%clk 0:00:26.5]} 35... Qxd4+ {[%clk 0:01:29.2]} 36. Qxd4
{[%clk 0:00:26.8]} 36... Bxd4+ {[%clk 0:01:30]} 37. Kf1 {[%clk 0:00:27.2]} 37...
Kf7 {[%clk 0:01:30.5]} 38. Ke2 {[%clk 0:00:26.6]} 38... Ke6 {[%clk 0:01:30.5]}
39. Nc7+ {[%clk 0:00:21.7]} 39... Ke5 {[%clk 0:01:29.7]} 40. Nb5 {[%clk
0:00:22.1]} 40... Bb2 {[%clk 0:01:26.1]} 41. Kf3 {[%clk 0:00:19.4]} 41... a6
{[%clk 0:01:25]} 42. Nc7 {[%clk 0:00:18]} 42... Bc3 {[%clk 0:01:21.3]} 43. Ne8
{[%clk 0:00:15.3]} 43... Ke6 {[%clk 0:01:14.8]} 44. Nc7+ {[%clk 0:00:15.1]}
44... Kd6 {[%clk 0:01:15.1]} 0-1

[Event "Early-Titled-Tuesday-Blitz-August-29-2023"]
[Site "Chess.com"]
[Date "2023.08.29"]
[Round "3"]
[White "Vuk2000"]
[Black "sergoy"]
[Result "0-1"]
[WhiteElo "2740"]
[BlackElo "2950"]
[TimeControl "180+1"]
[EndTime "8:28:10 PDT"]
[Termination "sergoy won on time"]

1. d4 {[%clk 0:03:00.9]} 1... Nf6 {[%clk 0:03:00.2]} 2. Bg5 {[%clk 0:03:01.2]}
2... Ne4 {[%clk 0:03:00.6]} 3. Bf4 {[%clk 0:03:01.1]} 3... c5 {[%clk 0:03:01.3]}
4. f3 {[%clk 0:03:00.8]} 4... Qa5+ {[%clk 0:03:02]} 5. c3 {[%clk 0:03:00.7]}
5... Nf6 {[%clk 0:03:02.7]} 6. d5 {[%clk 0:03:01]} 6... d6 {[%clk 0:03:03.2]} 7.
e4 {[%clk 0:03:01]} 7... Nbd7 {[%clk 0:03:02.5]} 8. Nh3 {[%clk 0:03:00.2]} 8...
g6 {[%clk 0:03:02.2]} 9. Nf2 {[%clk 0:02:59.4]} 9... Bg7 {[%clk 0:03:01.9]} 10.
Na3 {[%clk 0:02:57.2]} 10... O-O {[%clk 0:03:00.3]} 11. Nc4 {[%clk 0:02:57.1]}
11... Qc7 {[%clk 0:03:00.5]} 12. a4 {[%clk 0:02:57.3]} 12... b6 {[%clk
0:02:57.9]} 13. Qd2 {[%clk 0:02:47]} 13... a6 {[%clk 0:02:57.1]} 14. g4 {[%clk
0:02:30]} 14... Rb8 {[%clk 0:02:52.4]} 15. h4 {[%clk 0:02:20.6]} 15... b5 {[%clk
0:02:49.1]} 16. axb5 {[%clk 0:02:20.8]} 16... axb5 {[%clk 0:02:50]} 17. Na3
{[%clk 0:02:03.3]} 17... c4 {[%clk 0:02:49.6]} 18. h5 {[%clk 0:01:55.3]} 18...
Nc5 {[%clk 0:02:41.3]} 19. Rd1 {[%clk 0:01:48.1]} 19... Qb6 {[%clk 0:02:25.4]}
20. Bh6 {[%clk 0:01:40.1]} 20... Bxg4 {[%clk 0:01:10.1]} 21. Bxg7 {[%clk
0:01:04.7]} 21... Bxf3 {[%clk 0:01:09.5]} 22. Bxf6 {[%clk 0:00:29.3]} 22... exf6
{[%clk 0:01:04.8]} 23. Rh3 {[%clk 0:00:15.2]} 23... Bxd1 {[%clk 0:01:01.6]} 24.
Qxd1 {[%clk 0:00:14.8]} 24... Rbe8 {[%clk 0:01:01.2]} 25. Bg2 {[%clk 0:00:11.5]}
25... f5 {[%clk 0:01:00.1]} 26. Qd4 {[%clk 0:00:09.6]} 26... Qd8 {[%clk
0:00:48.5]} 27. Kf1 {[%clk 0:00:08.9]} 27... Qg5 {[%clk 0:00:45.9]} 28. h6
{[%clk 0:00:03.3]} 28... Re5 {[%clk 0:00:44.3]} 29. exf5 {[%clk 0:00:02.3]}
29... Rfe8 {[%clk 0:00:42.3]} 0-1